fUST/lending_fUST_20250129
["ID","MTS","AMOUNT","RATE_DAILY","PERIOD"]
[350781466,1738123847589,-153.60964,0.00017168,2]
[350781467,1738123847599,-500.0,0.00017168,2]
[350781468,1738123847608,-500.0,0.00017168,2]
[350781469,1738123847618,-500.0,0.00017168,2]
[350781470,1738123847627,-151.0,0.00017168,2]
[350781471,1738123847636,-666.74,0.00017168,2]
[350781472,1738123847646,-500.0,0.00017168,2]
[350781473,1738123847655,-151.0,0.00017168,2]
[350781474,1738123847665,-500.0,0.00017168,2]
[350781475,1738123847675,-500.0,0.00017168,2]
[350781476,1738123847685,-876.277541,0.00017168,2]
[350781477,1738123847694,-151.0,0.00017168,2]
[350781478,1738123847703,-570.61,0.00017168,2]
[350781479,1738123847713,-500.0,0.00017168,2]
[350781480,1738123847722,-500.0,0.00017168,2]
[350781481,1738123847731,-876.277541,0.00017168,2]
[350781482,1738123847740,-500.0,0.00017168,2]
[350781483,1738123847750,-209.190765,0.00017168,2]
[350781484,1738123847760,-365.73336247,0.00017168,2]
[350781485,1738123847898,-151.0,0.00017031,2]
[350781486,1738123847908,-134.26663753,0.00017168,2]
[350781487,1738123847918,-151.0,0.00017168,2]
[350781488,1738123847928,-500.0,0.00017168,2]
[350781489,1738123847938,-502.10268521,0.00017168,2]
[350781490,1738123847947,-500.0,0.00017168,2]
[350781491,1738123847957,-166.404852,0.00017168,2]
[350781492,1738123847966,-503.12192671,0.00017168,2]
[350781493,1738123847975,-151.0,0.00017168,2]
[350781494,1738123847985,-500.0,0.00017168,2]
[350781495,1738123847994,-503.18842213,0.00017168,2]
[350781496,1738123848004,-504.08,0.00017168,2]
[350781497,1738123848013,-3441.89,0.00017168,2]
[350781498,1738123848023,-500.0,0.00017168,2]
[350781499,1738123848032,-500.0,0.00017168,2]
[350781500,1738123848041,-500.0,0.00017168,2]
[350781501,1738123848051,-500.0,0.00017168,2]
[350781502,1738123848060,-500.0,0.00017168,2]
[350781503,1738123848070,-205.675364,0.00017168,2]
[350781504,1738123848079,-3079.35,0.00017168,2]
[350781505,1738123848088,-373.26411767,0.00017168,2]
[350781506,1738123848098,-205.675364,0.00017168,2]
[350781507,1738123848107,-500.0,0.00017168,2]
[350781508,1738123848117,-500.0,0.00017168,2]
[350781509,1738123848126,-510.27951506,0.00017168,2]
[350781510,1738123848136,-500.0,0.00017168,2]
[350781511,1738123848145,-500.0,0.00017168,2]
[350781512,1738123848155,-500.0,0.00017168,2]
[350781513,1738123848164,-500.0,0.00017168,2]
[350781514,1738123848174,-500.0,0.00017168,2]
[350781515,1738123848184,-381.335984,0.00017168,2]
[350781516,1738123848193,-381.335984,0.00017168,2]
[350781517,1738123848203,-500.0,0.00017169,2]
[350781518,1738123848212,-500.0,0.00017169,2]
[350781519,1738123848221,-500.0,0.00017169,2]
[350781520,1738123848231,-500.0,0.00017169,2]
[350781521,1738123848241,-500.0,0.00017169,2]
[350781522,1738123848250,-188.759428,0.00017169,2]
[350781523,1738123848259,-500.0,0.00017169,2]
[350781524,1738123848268,-188.759428,0.00017169,2]
[350781525,1738123848277,-500.0,0.00017169,2]
[350781526,1738123848287,-500.0,0.00017169,2]
[350781527,1738123848296,-500.0,0.00017169,2]
[350781528,1738123848306,-151.0,0.00017169,2]
[350781529,1738123848319,-151.0,0.00017169,2]
[350781530,1738123848328,-151.0,0.00017169,2]
[350781531,1738123848338,-500.0,0.00017169,2]
[350781532,1738123848347,-500.0,0.00017169,2]
[350781533,1738123848356,-500.0,0.00017169,2]
[350781534,1738123848366,-510.19438406,0.00017169,2]
[350781535,1738123848375,-500.0,0.00017169,2]
[350781536,1738123848385,-500.0,0.00017169,2]
[350781537,1738123848395,-151.0,0.00017169,2]
[350781538,1738123848405,-170.5056,0.00017169,2]
[350781539,1738123848414,-151.0,0.00017169,2]
[350781540,1738123848423,-170.5056,0.00017169,2]
[350781541,1738123848433,-203.34271,0.00017169,2]
[350781542,1738123848442,-203.34271,0.00017169,2]
[350781543,1738123848451,-500.0,0.0001717,2]
[350781544,1738123848460,-500.0,0.0001717,2]
[350781545,1738123848470,-500.0,0.0001717,2]
[350781546,1738123848479,-500.0,0.0001717,2]
[350781547,1738123848488,-398.58973083,0.0001717,2]
[350781548,1738123848497,-500.0,0.0001717,2]
[350781549,1738123848506,-500.0,0.0001717,2]
[350781550,1738123848516,-500.0,0.0001717,2]
[350781551,1738123848525,-503.49773745,0.0001717,2]
[350781552,1738123848535,-500.0,0.0001717,2]
[350781553,1738123848544,-500.0,0.0001717,2]
[350781554,1738123848554,-500.0,0.0001717,2]
[350781555,1738123848564,-500.0,0.0001717,2]
[350781556,1738123848574,-500.0,0.0001717,2]
[350781557,1738123848584,-618.21864201,0.0001717,2]
[350781558,1738123848594,-500.0,0.0001717,2]
[350781559,1738123848604,-500.0,0.0001717,2]
[350781560,1738123848613,-257.22817801,0.0001717,2]
[350781561,1738123848622,-511.15414075,0.0001717,2]
[350781562,1738123848632,-500.0,0.0001717,2]
[350781563,1738123848641,-500.0,0.0001717,2]
[350781564,1738123848651,-507.93344506,0.0001717,2]
[350781565,1738123848662,-500.0,0.0001717,2]
[350781566,1738123848672,-500.0,0.0001717,2]
[350781567,1738123848682,-151.0,0.0001717,2]
[350781568,1738123848692,-151.0,0.0001717,2]
[350781569,1738123848701,-238.949134,0.0001717,2]
[350781570,1738123848710,-151.0,0.0001717,2]
[350781571,1738123848721,-151.0,0.0001717,2]
[350781572,1738123848730,-152.390082,0.0001717,2]
[350781573,1738123848740,-169.377002,0.0001717,2]
[350781574,1738123848749,-169.377002,0.0001717,2]
[350781575,1738123848759,-761.636929,0.0001717,2]
[350781576,1738123848769,-761.636929,0.0001717,2]
[350781577,1738123848779,-7578.63,0.000172,2]
[350781578,1738123848788,-323.95847603,0.000172,2]
[350781579,1738123848980,-500.0,0.00016893,2]
[350781580,1738123848990,-500.0,0.0001703,2]
[350781581,1738123849000,-266.76,0.00017167,2]
[350781582,1738123849009,-151.0,0.00017168,2]
[350781583,1738123849019,-1359.5008415,0.000172,2]
[350781584,1738123849034,-2546.9404988,0.000172,2]
[350781585,1738123849098,-990.66197027,0.000172,2]
[350781586,1738123849109,-5010.38397242,0.000172,2]
[350781587,1738123849120,-866.34424098,0.000172,2]
[350781588,1738123849130,-500.96871249,0.00017285,2]
[350781589,1738123849139,-500.0,0.00017303,2]
[350781590,1738123849149,-1052.93,0.00017303,2]
[350781591,1738123849159,-651.54,0.00017303,2]
[350781592,1738123849170,-500.0,0.00017303,2]
[350781593,1738123849179,-500.0,0.00017303,2]
[350781594,1738123849189,-500.0,0.00017303,2]
[350781595,1738123849198,-1648.8,0.00017303,2]
[350781596,1738123849207,-2920.33,0.00017303,2]
[350781597,1738123849217,-500.0,0.00017304,2]
[350781598,1738123849226,-500.0,0.00017304,2]
[350781599,1738123849235,-506.18,0.00017304,2]
[350781600,1738123849244,-500.0,0.00017304,2]
[350781601,1738123849254,-159.00114575,0.00017304,2]
[350781602,1738123849263,-500.0,0.00017304,2]
[350781603,1738123849272,-500.0,0.00017304,2]
[350781604,1738123849281,-500.0,0.00017304,2]
[350781605,1738123849290,-500.0,0.00017304,2]
[350781606,1738123849299,-500.0,0.00017304,2]
[350781607,1738123849309,-500.0,0.00017304,2]
[350781608,1738123849321,-500.0,0.00017304,2]
[350781609,1738123849330,-500.0,0.00017304,2]
[350781610,1738123849339,-500.0,0.00017304,2]
[350781611,1738123849349,-500.0,0.00017304,2]
[350781612,1738123849359,-500.0,0.00017304,2]
[350781613,1738123849369,-404.53636195,0.00017304,2]
[350781614,1738123849378,-500.0,0.00017304,2]
[350781615,1738123849388,-500.0,0.00017304,2]
[350781616,1738123849397,-500.0,0.00017304,2]
[350781617,1738123849407,-426.77811616,0.00017304,2]
[350781618,1738123849417,-500.0,0.00017304,2]
[350781619,1738123849427,-500.0,0.00017304,2]
[350781620,1738123849437,-500.0,0.00017305,2]
[350781621,1738123849447,-500.0,0.00017305,2]
[350781622,1738123849457,-500.0,0.00017305,2]
[350781623,1738123849466,-500.0,0.00017305,2]
[350781624,1738123849476,-482.67531648,0.00017305,2]
[350781625,1738123849485,-515.10540092,0.00017305,2]
[350781626,1738123849495,-500.0,0.00017305,2]
[350781627,1738123849506,-500.0,0.00017305,2]
[350781628,1738123849515,-500.0,0.00017305,2]
[350781629,1738123849524,-500.0,0.00017305,2]
[350781630,1738123849533,-500.0,0.00017305,2]
[350781631,1738123849541,-500.0,0.00017305,2]
[350781632,1738123849550,-272.69496155,0.00017305,2]
[350781633,1738123849668,229.361529,0.00013973,2]
[350781634,1738123914506,376.12,0.000204,120]
[350781643,1738124302630,175.003641,0.00013699,2]
[350781645,1738124674399,402.44,0.00020453,120]
[350781650,1738124776576,254.567548,0.00013973,2]
[350781678,1738125032270,-384.04860438,0.00016789,2]
[350781679,1738125032280,-300.0,0.00016887,2]
[350781680,1738125032289,-500.0,0.00016888,2]
[350781681,1738125032299,-993.44,0.00016888,2]
[350781682,1738125032308,-500.0,0.00016888,2]
[350781683,1738125032317,-556.79,0.00016888,2]
[350781684,1738125032327,-500.0,0.00016888,2]
[350781685,1738125032336,-500.99567581,0.00016888,2]
[350781686,1738125032345,-500.0,0.00016888,2]
[350781687,1738125032355,-1394.83,0.00016888,2]
[350781689,1738125032365,-500.0,0.00016889,2]
[350781691,1738125032374,-500.0,0.00016889,2]
[350781693,1738125032383,-500.0,0.00016889,2]
[350781695,1738125032392,-500.0,0.00016889,2]
[350781697,1738125032401,-500.0,0.00016889,2]
[350781699,1738125032411,-500.0,0.00016889,2]
[350781701,1738125032420,-590.66,0.00016889,2]
[350781703,1738125032429,-500.0,0.00016889,2]
[350781705,1738125032438,-500.0,0.00016889,2]
[350781707,1738125032447,-500.0,0.00016889,2]
[350781709,1738125032458,-500.0,0.00016889,2]
[350781711,1738125032467,-2664.84,0.00016889,2]
[350781713,1738125032477,-500.0,0.00016889,2]
[350781715,1738125032486,-707.68,0.00016889,2]
[350781717,1738125032495,-1269.9,0.00016889,2]
[350781719,1738125032504,-500.0,0.00016889,2]
[350781721,1738125032513,-500.0,0.00016889,2]
[350781723,1738125032523,-500.0,0.00016889,2]
[350781725,1738125032532,-11054.39,0.00016889,2]
[350781727,1738125032541,-877.71,0.00016889,2]
[350781728,1738125032551,-500.0,0.00016889,2]
[350781730,1738125032561,-500.0,0.00016889,2]
[350781732,1738125032570,-500.0,0.00016889,2]
[350781734,1738125032580,-500.0,0.00016889,2]
[350781736,1738125032591,-500.0,0.00016889,2]
[350781738,1738125032601,-500.0,0.00016889,2]
[350781740,1738125032610,-500.0,0.00016889,2]
[350781741,1738125032621,-677.74,0.00016889,2]
[350781742,1738125032630,-500.0,0.00016889,2]
[350781743,1738125032640,-659.18,0.00016889,2]
[350781744,1738125032649,-1172.04,0.00016889,2]
[350781745,1738125032659,-500.65808921,0.00016889,2]
[350781746,1738125032668,-500.0,0.00016889,2]
[350781747,1738125032678,-500.0,0.00016889,2]
[350781748,1738125032690,-1227.47,0.00016889,2]
[350781749,1738125032700,-500.0,0.00016889,2]
[350781750,1738125032715,-583.4,0.00016889,2]
[350781751,1738125032725,-500.0,0.00016889,2]
[350781752,1738125032735,-500.0,0.00016889,2]
[350781753,1738125032745,-500.0,0.00016889,2]
[350781754,1738125032756,-500.0,0.00016889,2]
[350781755,1738125032766,-3040.58,0.00016889,2]
[350781756,1738125032779,-500.0,0.00016889,2]
[350781757,1738125032789,-500.0,0.00016889,2]
[350781758,1738125032799,-506.79103997,0.00016889,2]
[350781759,1738125032809,-500.0,0.00016889,2]
[350781760,1738125032820,-2220.36984986,0.00016889,2]
[350782753,1738125307103,175.003641,0.00013699,2]
[350782756,1738125728934,275.663572,0.00013973,2]
[350782759,1738126117247,175.003641,0.00013699,2]
[350782804,1738126232358,-303.6813169,0.00016029,2]
[350782805,1738126232368,-643.88858747,0.00016091,2]
[350782807,1738126232378,-303.6813169,0.00016191,2]
[350782809,1738126232387,-300.0,0.00016354,2]
[350782811,1738126232397,-16133.0,0.00016355,3]
[350782812,1738126232407,-8011.39709882,0.00016457,2]
[350782813,1738126232417,-336.04252878,0.00016785,2]
[350782814,1738126232428,-200.53584417,0.000168,2]
[350782815,1738126232438,-196.84734716,0.00016873,2]
[350782816,1738126232448,-503.38127608,0.00016873,2]
[350782817,1738126232458,-500.0,0.00016873,2]
[350782818,1738126232467,-500.0,0.00016885,2]
[350782819,1738126232478,-500.0,0.00016885,2]
[350782820,1738126232488,-500.0,0.00016885,2]
[350782821,1738126232499,-1196.94,0.00016885,2]
[350782822,1738126232510,-500.0,0.00016885,2]
[350782823,1738126232519,-500.0,0.00016885,2]
[350782824,1738126232529,-553.02,0.00016885,2]
[350782825,1738126232539,-500.0,0.00016885,2]
[350782826,1738126232548,-658.51,0.00016885,2]
[350782827,1738126232558,-500.0,0.00016885,2]
[350782828,1738126232568,-500.0,0.00016885,2]
[350782829,1738126232578,-1336.72,0.00016885,2]
[350782830,1738126232587,-500.0,0.00016885,2]
[350782831,1738126232597,-500.0,0.00016885,2]
[350782832,1738126232607,-500.0,0.00016885,2]
[350782833,1738126232617,-7106.60052098,0.00016886,5]
[350782834,1738126232629,-2697.51995336,0.00016886,5]
[350782835,1738126232641,-6391.63947589,0.00016886,5]
[350782836,1738126232653,-22078.70315615,0.00016886,5]
[350782837,1738126232663,-500.0,0.00016886,2]
[350782838,1738126232673,-500.0,0.00016886,2]
[350782839,1738126232682,-505.08567262,0.00016886,2]
[350782840,1738126232692,-500.0,0.00016886,2]
[350782841,1738126232701,-500.0,0.00016886,2]
[350782842,1738126232711,-500.0,0.00016886,2]
[350782843,1738126232721,-500.0,0.00016886,2]
[350782844,1738126232731,-500.0,0.00016886,2]
[350782845,1738126232742,-459.04611563,0.00016886,2]
[350782846,1738126232753,-500.0,0.00016886,2]
[350782847,1738126232763,-3359.24,0.00016886,2]
[350782848,1738126232773,-500.0,0.00016886,2]
[350782849,1738126232784,-200.0,0.00016886,2]
[350782850,1738126232793,-511.92579448,0.00016886,2]
[350782851,1738126232803,-357.02531199,0.00016886,2]
[350782852,1738126232812,-1174.23,0.00016886,2]
[350782853,1738126232822,-500.0,0.00016886,2]
[350782854,1738126232831,-500.0,0.00016886,2]
[350782855,1738126232841,-500.0,0.00016886,2]
[350782856,1738126232851,-562.92,0.00016886,2]
[350782857,1738126232861,-1510.06,0.00016886,2]
[350782858,1738126232871,-500.0,0.00016886,2]
[350782859,1738126232880,-500.0,0.00016886,2]
[350782860,1738126232890,-500.0,0.00016886,2]
[350782861,1738126232900,-500.0,0.00016886,2]
[350782862,1738126232910,-500.0,0.00016886,2]
[350782863,1738126232919,-500.0,0.00016886,2]
[350782864,1738126232929,-500.0,0.00016886,2]
[350782865,1738126232939,-500.0,0.00016886,2]
[350782866,1738126232949,-500.0,0.00016886,2]
[350782867,1738126232959,-500.0,0.00016886,2]
[350782868,1738126232968,-500.0,0.00016886,2]
[350782869,1738126232978,-900.02,0.00016886,2]
[350782870,1738126232988,-321.18157943,0.00016886,2]
[350782871,1738126232999,-500.0,0.00016886,2]
[350782872,1738126233009,-500.0,0.00016886,2]
[350782873,1738126233019,-500.0,0.00016886,2]
[350782874,1738126233030,-901.4,0.00016886,2]
[350782875,1738126233040,-500.0,0.00016886,2]
[350782876,1738126233050,-1574.54,0.00016886,2]
[350782877,1738126233060,-500.0,0.00016886,2]
[350782878,1738126233070,-500.0,0.00016886,2]
[350782879,1738126233080,-500.0,0.00016886,2]
[350782880,1738126233091,-500.0,0.00016886,2]
[350782881,1738126233105,-500.0,0.00016886,2]
[350782882,1738126233115,-500.0,0.00016886,2]
[350782883,1738126233125,-500.0,0.00016886,2]
[350782884,1738126233135,-259.41907012,0.00016886,2]
[350782885,1738126233146,-500.0,0.00016886,2]
[350782886,1738126233155,-576.36666533,0.00016886,2]
[350782887,1738126233165,-500.0,0.00016886,2]
[350782888,1738126233176,-500.0,0.00016886,2]
[350782889,1738126233186,-500.0,0.00016886,2]
[350782890,1738126233195,-500.0,0.00016886,2]
[350782891,1738126233205,-500.0,0.00016886,2]
[350782892,1738126233216,-500.0,0.00016886,2]
[350782893,1738126233225,-1492.58,0.00016886,2]
[350782894,1738126233235,-500.0,0.00016886,2]
[350782895,1738126233246,-734.45,0.00016886,2]
[350782896,1738126233257,-500.0,0.00016886,2]
[350782897,1738126233268,-604.16,0.00016886,2]
[350782898,1738126233278,-589.02,0.00016886,2]
[350782899,1738126233288,-500.0,0.00016886,2]
[350782900,1738126233298,-500.0,0.00016886,2]
[350782901,1738126233308,-500.0,0.00016886,2]
[350782902,1738126233317,-500.0,0.00016886,2]
[350782903,1738126233327,-500.0,0.00016886,2]
[350782904,1738126233337,-548.33,0.00016886,2]
[350782905,1738126233347,-500.0,0.00016886,2]
[350782906,1738126233357,-500.0,0.00016886,2]
[350782907,1738126233367,-500.0,0.00016886,2]
[350782908,1738126233378,-500.0,0.00016886,2]
[350782909,1738126233388,-500.0,0.00016886,2]
[350782910,1738126233398,-500.0,0.00016886,2]
[350782911,1738126233408,-500.0,0.00016886,2]
[350782912,1738126233419,-517.43354033,0.00016886,2]
[350782913,1738126233429,-511.94851244,0.00016886,2]
[350782914,1738126233439,-2601.91,0.00016886,2]
[350782915,1738126233450,-500.0,0.00016886,2]
[350782916,1738126233460,-500.0,0.00016886,2]
[350782917,1738126233471,-500.0,0.00016886,2]
[350782918,1738126233481,-500.0,0.00016887,2]
[350782919,1738126233491,-500.0,0.00016887,2]
[350782920,1738126233502,-500.0,0.00016887,2]
[350782921,1738126233513,-500.0,0.00016887,2]
[350782922,1738126233523,-500.0,0.00016887,2]
[350782923,1738126233533,-500.0,0.00016887,2]
[350782924,1738126233543,-500.0,0.00016887,2]
[350782925,1738126233553,-500.0,0.00016887,2]
[350782926,1738126233563,-500.0,0.00016887,2]
[350782927,1738126233573,-500.0,0.00016887,2]
[350782928,1738126233583,-500.0,0.00016887,2]
[350782929,1738126233593,-500.0,0.00016887,2]
[350782930,1738126233603,-500.0,0.00016887,2]
[350782931,1738126233613,-500.0,0.00016887,2]
[350782932,1738126233623,-500.0,0.00016887,2]
[350782933,1738126233633,-500.0,0.00016887,2]
[350782934,1738126233642,-500.0,0.00016887,2]
[350782935,1738126233652,-500.0,0.00016887,2]
[350782936,1738126233663,-500.0,0.00016887,2]
[350782937,1738126233673,-500.0,0.00016887,2]
[350782938,1738126233683,-500.0,0.00016887,2]
[350782939,1738126233693,-537.20449259,0.00016887,2]
[350782940,1738126233703,-166.72881406,0.00016887,2]
[350782979,1738126238328,-6341.32012524,0.00016885,5]
[350782981,1738126238338,-500.0,0.00016886,2]
[350782983,1738126238349,-333.27118594,0.00016887,2]
[350782985,1738126238359,-636.36,0.00016887,2]
[350782987,1738126238368,-500.0,0.00016887,2]
[350782989,1738126238378,-500.0,0.00016887,2]
[350782991,1738126238387,-500.0,0.00016887,2]
[350782993,1738126238396,-500.0,0.00016887,2]
[350782995,1738126238406,-500.0,0.00016887,2]
[350782997,1738126238416,-500.0,0.00016887,2]
[350782999,1738126238426,-500.0,0.00016887,2]
[350783001,1738126238436,-500.0,0.00016887,2]
[350783003,1738126238446,-500.0,0.00016887,2]
[350783005,1738126238455,-500.0,0.00016887,2]
[350783007,1738126238465,-500.0,0.00016887,2]
[350783009,1738126238475,-500.0,0.00016887,2]
[350783011,1738126238486,-500.0,0.00016887,2]
[350783013,1738126238495,-500.0,0.00016887,2]
[350783015,1738126238507,-508.04898694,0.00016887,2]
[350783017,1738126238516,-500.0,0.00016887,2]
[350783019,1738126238526,-500.0,0.00016887,2]
[350783021,1738126238536,-500.0,0.00016887,2]
[350783023,1738126238545,-500.0,0.00016887,2]
[350783025,1738126238555,-500.0,0.00016887,2]
[350783027,1738126238565,-500.0,0.00016887,2]
[350783029,1738126238575,-500.0,0.00016887,2]
[350783031,1738126238585,-500.0,0.00016887,2]
[350783033,1738126238595,-500.0,0.00016887,2]
[350783035,1738126238604,-500.0,0.00016887,2]
[350783037,1738126238614,-4184.23,0.00016887,2]
[350783039,1738126238624,-159.41,0.00016887,2]
[350783041,1738126238633,-766.29,0.00016887,2]
[350783043,1738126238643,-505.43875293,0.00016887,2]
[350783045,1738126238652,-500.0,0.00016887,2]
[350783047,1738126238662,-500.0,0.00016887,2]
[350783049,1738126238671,-500.0,0.00016887,2]
[350783050,1738126238681,-605.25127706,0.00016887,2]
[350783052,1738126238692,-12520.89,0.00016887,2]
[350783054,1738126238702,-500.0,0.00016887,2]
[350783056,1738126238712,-536.14,0.00016887,2]
[350783058,1738126238722,-500.0,0.00016887,2]
[350783060,1738126238731,-4652.28,0.00016887,2]
[350783062,1738126238740,-219.43,0.00016887,2]
[350783064,1738126238750,-500.0,0.00016887,2]
[350783066,1738126238761,-502.14763186,0.00016887,2]
[350783068,1738126238770,-505.44396854,0.00016887,2]
[350783070,1738126238780,-500.0,0.00016887,2]
[350783073,1738126238790,-500.0,0.00016887,2]
[350783075,1738126238800,-500.0,0.00016887,2]
[350783077,1738126238809,-500.0,0.00016887,2]
[350783079,1738126238819,-500.0,0.00016888,2]
[350783081,1738126238828,-503.12473356,0.00016888,2]
[350783082,1738126238837,-500.0,0.00016888,2]
[350783084,1738126238847,-500.0,0.00016888,2]
[350783087,1738126238857,-500.0,0.00016888,2]
[350783089,1738126238867,-500.0,0.00016888,2]
[350783091,1738126238877,-422.86188512,0.00016888,2]
[350783092,1738126238886,-500.0,0.00016888,2]
[350783095,1738126238896,-500.0,0.00016888,2]
[350783097,1738126238906,-500.0,0.00016888,2]
[350783098,1738126238916,-155.55697632,0.00016888,2]
[350783100,1738126238926,-500.0,0.00016888,2]
[350783102,1738126238936,-500.0,0.00016888,2]
[350783104,1738126238946,-500.0,0.00016888,2]
[350783106,1738126238956,-500.0,0.00016888,2]
[350783107,1738126238966,-500.0,0.00016888,2]
[350783109,1738126238975,-500.0,0.00016888,2]
[350783111,1738126238985,-500.0,0.00016888,2]
[350783113,1738126238995,-500.0,0.00016888,2]
[350783115,1738126239005,-408.77646399,0.00016888,2]
[350783117,1738126239015,-500.0,0.00016888,2]
[350783119,1738126239024,-500.0,0.00016888,2]
[350783121,1738126239034,-500.0,0.00016888,2]
[350783123,1738126239043,-500.0,0.00016888,2]
[350783125,1738126239052,-500.0,0.00016888,2]
[350783127,1738126239062,-506.15544636,0.00016888,2]
[350783129,1738126239071,-626.87,0.00016888,2]
[350783131,1738126239081,-500.0,0.00016888,2]
[350783133,1738126239090,-500.0,0.00016888,2]
[350783135,1738126239101,-500.0,0.00016888,2]
[350783137,1738126239111,-513.5382037,0.00016888,2]
[350783139,1738126239120,-500.0,0.00016888,2]
[350783141,1738126239130,-330.34880029,0.00016888,2]
[350783142,1738126239139,-500.0,0.00016888,2]
[350783143,1738126239150,-500.0,0.00016888,2]
[350783144,1738126239160,-500.0,0.00016888,2]
[350783145,1738126239170,-500.0,0.00016888,2]
[350783146,1738126239181,-500.0,0.00016888,2]
[350783147,1738126239191,-208.1466038,0.00016888,2]
[350783148,1738126239200,-504.56176528,0.00016888,2]
[350783149,1738126239210,-504.06391903,0.00016888,2]
[350783150,1738126239220,-500.0,0.00016888,2]
[350783151,1738126239230,-500.0,0.00016888,2]
[350783152,1738126239240,-500.0,0.00016888,2]
[350783153,1738126239249,-501.23723281,0.00016888,2]
[350783154,1738126239260,-500.0,0.00016888,2]
[350783155,1738126239270,-502.04228408,0.00016888,2]
[350783156,1738126239280,-500.0,0.00016888,2]
[350783157,1738126239290,-509.21614044,0.00016888,2]
[350783158,1738126239300,-500.0,0.00016888,2]
[350783159,1738126239309,-500.0,0.00016888,2]
[350783160,1738126239319,-505.37883034,0.00016888,2]
[350783161,1738126239329,-502.67179915,0.00016888,2]
[350783162,1738126239340,-501.89898233,0.00016888,2]
[350783163,1738126239351,-500.0,0.00016888,2]
[350783165,1738126239360,-500.0,0.00016888,2]
[350783166,1738126239369,-500.0,0.00016888,2]
[350783167,1738126239379,-510.33735253,0.00016888,2]
[350783169,1738126239388,-502.52479883,0.00016888,2]
[350783171,1738126239398,-500.0,0.00016888,2]
[350783173,1738126239407,-501.31107721,0.00016888,2]
[350783175,1738126239416,-583.81,0.00016888,2]
[350783176,1738126239425,-508.69528929,0.00016888,2]
[350783178,1738126239435,-501.5580331,0.00016888,2]
[350783180,1738126239444,-509.21746881,0.00016888,2]
[350783182,1738126239453,-500.0,0.00016888,2]
[350783184,1738126239463,-503.03319876,0.00016888,2]
[350783187,1738126239473,-500.0,0.00016888,2]
[350783188,1738126239483,-507.36618061,0.00016888,2]
[350783190,1738126239493,-500.0,0.00016888,2]
[350783192,1738126239504,-500.0,0.00016888,2]
[350783195,1738126239517,-500.0,0.00016888,2]
[350783196,1738126239527,-209.26499385,0.00016888,2]
[350783198,1738126239536,-500.0,0.00016888,2]
[350783200,1738126239546,-500.0,0.00016888,2]
[350783203,1738126239556,-500.0,0.00016888,2]
[350783204,1738126239566,-504.64402782,0.00016888,2]
[350783206,1738126239576,-500.0,0.00016888,2]
[350783208,1738126239586,-501.64534017,0.00016888,2]
[350783210,1738126239595,-500.0,0.00016888,2]
[350783212,1738126239605,-500.0,0.00016888,2]
[350783214,1738126239615,-500.0,0.00016888,2]
[350783216,1738126239625,-504.32532042,0.00016888,2]
[350783218,1738126239634,-296.02020905,0.00016888,2]